[Event "*** Qualifier 4: Titled Tuesday 3|2 Blitz"]
[Site "Chess.com"]
[Date "2017.04.25"]
[Round "9"]
[White "prochn"]
[Black "aRk_iN"]
[Result "1-0"]
[WhiteElo "2210"]
[BlackElo "2107"]
[TimeControl "180+2"]
[EndTime "14:56:26 PDT"]
[Termination "prochn won on time"]

1. d4 {[%clk 0:03:02]} 1... Nf6 {[%clk 0:03:00.6]} 2. c4 {[%clk 0:03:02.5]} 2...
g6 {[%clk 0:03:01.9]} 3. g3 {[%clk 0:03:03]} 3... Bg7 {[%clk 0:03:02.9]} 4. Bg2
{[%clk 0:03:04.4]} 4... d6 {[%clk 0:03:00.2]} 5. Nc3 {[%clk 0:03:05]} 5... O-O
{[%clk 0:02:57.7]} 6. Nf3 {[%clk 0:03:06.2]} 6... c6 {[%clk 0:02:50.5]} 7. O-O
{[%clk 0:03:06.6]} 7... Nbd7 {[%clk 0:02:46.7]} 8. e4 {[%clk 0:03:04.8]} 8... e5
{[%clk 0:02:47.5]} 9. h3 {[%clk 0:03:05.2]} 9... Re8 {[%clk 0:02:39.6]} 10. Re1
{[%clk 0:03:06.1]} 10... exd4 {[%clk 0:02:33.5]} 11. Nxd4 {[%clk 0:03:08]} 11...
Nc5 {[%clk 0:02:34.6]} 12. Rb1 {[%clk 0:02:54.6]} 12... a5 {[%clk 0:02:34.1]}
13. Bf4 {[%clk 0:02:45.9]} 13... Nh5 {[%clk 0:02:23.7]} 14. Be3 {[%clk
0:02:44.1]} 14... Nf6 {[%clk 0:02:24.2]} 15. Qc2 {[%clk 0:02:41.8]} 15... Be6
{[%clk 0:02:16.5]} 16. b3 {[%clk 0:02:36.6]} 16... Qd7 {[%clk 0:02:11.3]} 17.
Kh2 {[%clk 0:02:36.2]} 17... Rad8 {[%clk 0:02:05.2]} 18. Rbd1 {[%clk 0:02:30.9]}
18... Qc7 {[%clk 0:02:05.3]} 19. a3 {[%clk 0:02:28.7]} 19... Bc8 {[%clk
0:01:51.6]} 20. b4 {[%clk 0:02:27.4]} 20... axb4 {[%clk 0:01:45.4]} 21. axb4
{[%clk 0:02:29.3]} 21... Ne6 {[%clk 0:01:39.1]} 22. Nb3 {[%clk 0:02:28.3]} 22...
c5 {[%clk 0:01:18.4]} 23. Nb5 {[%clk 0:02:18.1]} 23... Qb8 {[%clk 0:01:17.3]}
24. bxc5 {[%clk 0:02:09.8]} 24... dxc5 {[%clk 0:01:10.8]} 25. Nxc5 {[%clk
0:02:09.4]} 25... Nxc5 {[%clk 0:00:50.7]} 26. Bxc5 {[%clk 0:02:10.5]} 26... Rxd1
{[%clk 0:00:46.2]} 27. Rxd1 {[%clk 0:02:12.4]} 27... Qe5 {[%clk 0:00:14.4]} 28.
Bd6 {[%clk 0:02:04.7]} 28... Qh5 {[%clk 0:00:11.1]} 29. Nc7 {[%clk 0:01:46]}
29... Rd8 {[%clk 0:00:10.7]} 30. c5 {[%clk 0:01:41.2]} 30... Bg4 {[%clk
0:00:10.6]} 31. Rd3 {[%clk 0:01:31.4]} 31... Be2 {[%clk 0:00:11.5]} 32. Rb3
{[%clk 0:01:25.1]} 32... Ng4+ {[%clk 0:00:06.8]} 33. Kg1 {[%clk 0:01:25.6]}
33... Ne5 {[%clk 0:00:07.2]} 34. g4 {[%clk 0:01:19.6]} 34... Bxg4 {[%clk
0:00:05.4]} 35. hxg4 {[%clk 0:01:20.3]} 35... Nxg4 {[%clk 0:00:07.1]} 36. Rxb7
{[%clk 0:00:56.5]} 36... Bf8 {[%clk 0:00:08.5]} 37. Nb5 {[%clk 0:00:53.5]} 37...
Bxd6 {[%clk 0:00:08.8]} 38. Nxd6 {[%clk 0:00:53.9]} 38... Qh2+ {[%clk
0:00:09.6]} 39. Kf1 {[%clk 0:00:55.3]} 39... Ra8 {[%clk 0:00:10.7]} 40. Rb1
{[%clk 0:00:46.4]} 40... Qf4 {[%clk 0:00:11.6]} 41. Qe2 {[%clk 0:00:37.8]} 41...
Ra3 {[%clk 0:00:06]} 42. Nc4 {[%clk 0:00:35.2]} 1-0

[Event "*** Qualifier 4: Titled Tuesday 3|2 Blitz"]
[Site "Chess.com"]
[Date "2017.04.25"]
[Round "9"]
[White "Outsmiter"]
[Black "kharov2001"]
[Result "1-0"]
[WhiteElo "2038"]
[BlackElo "1921"]
[TimeControl "180+2"]
[EndTime "14:56:42 PDT"]
[Termination "Outsmiter won on time"]

1. e4 {[%clk 0:03:02]} 1... c5 {[%clk 0:02:54.7]} 2. Nc3 {[%clk 0:03:02.6]} 2...
Nc6 {[%clk 0:02:48.5]} 3. f4 {[%clk 0:03:03.6]} 3... g5 {[%clk 0:02:47.6]} 4.
fxg5 {[%clk 0:03:01.4]} 4... Bg7 {[%clk 0:02:48]} 5. Nf3 {[%clk 0:03:01.4]} 5...
h6 {[%clk 0:02:48.6]} 6. d3 {[%clk 0:02:59.7]} 6... hxg5 {[%clk 0:02:47.1]} 7.
Bxg5 {[%clk 0:03:01.6]} 7... Nf6 {[%clk 0:02:47.6]} 8. Qd2 {[%clk 0:03:00]} 8...
a6 {[%clk 0:02:45.8]} 9. O-O-O {[%clk 0:02:51]} 9... b5 {[%clk 0:02:46.5]} 10.
g3 {[%clk 0:02:39.2]} 10... d6 {[%clk 0:02:45.6]} 11. Bg2 {[%clk 0:02:39.5]}
11... Bd7 {[%clk 0:02:33.4]} 12. h4 {[%clk 0:02:31.3]} 12... Qb6 {[%clk
0:02:33.2]} 13. h5 {[%clk 0:02:26.8]} 13... Nxh5 {[%clk 0:02:31.1]} 14. Nd5
{[%clk 0:02:19.4]} 14... Qb8 {[%clk 0:02:19.3]} 15. Bh3 {[%clk 0:02:05.7]} 15...
e6 {[%clk 0:02:15.7]} 16. Bg4 {[%clk 0:01:56.3]} 16... exd5 {[%clk 0:01:45.1]}
17. Bxh5 {[%clk 0:01:51.2]} 17... d4 {[%clk 0:01:40.4]} 18. Qf2 {[%clk
0:01:42.4]} 18... Be6 {[%clk 0:01:30.2]} 19. Kb1 {[%clk 0:01:36]} 19... Kd7
{[%clk 0:01:26.2]} 20. Rdf1 {[%clk 0:01:34.6]} 20... c4 {[%clk 0:01:13.4]} 21.
Ne1 {[%clk 0:01:06.7]} 21... Rf8 {[%clk 0:01:05]} 22. Bf6 {[%clk 0:01:02.1]}
22... Bh6 {[%clk 0:00:55.5]} 23. Bxd4 {[%clk 0:01:00.1]} 23... Nxd4 {[%clk
0:00:35.4]} 24. Qxd4 {[%clk 0:01:02]} 24... Qc7 {[%clk 0:00:32.1]} 25. Bxf7
{[%clk 0:00:55.8]} 25... Rxf7 {[%clk 0:00:14.7]} 26. Rxf7+ {[%clk 0:00:55.3]}
26... Bxf7 {[%clk 0:00:14.7]} 27. Rxh6 {[%clk 0:00:55.8]} 27... Rf8 {[%clk
0:00:14.7]} 28. e5 {[%clk 0:00:51.2]} 28... d5 {[%clk 0:00:11.9]} 29. Rh7 {[%clk
0:00:41.4]} 29... cxd3 {[%clk 0:00:10.1]} 30. Nxd3 {[%clk 0:00:31.7]} 30... Kd8
{[%clk 0:00:08.6]} 31. b3 {[%clk 0:00:24.5]} 31... Qd7 {[%clk 0:00:05.8]} 32.
Qb6+ {[%clk 0:00:21.6]} 32... Kc8 {[%clk 0:00:03.5]} 33. Qxa6+ {[%clk
0:00:21.6]} 33... Kb8 {[%clk 0:00:03.7]} 34. Nc5 {[%clk 0:00:20.5]} 34... Qc7
{[%clk 0:00:03.5]} 35. Qxb5+ {[%clk 0:00:19.7]} 35... Kc8 {[%clk 0:00:03.3]} 36.
Qa6+ {[%clk 0:00:19.8]} 36... Kb8 {[%clk 0:00:03]} 37. Qb5+ {[%clk 0:00:18.5]}
37... Kc8 {[%clk 0:00:03.8]} 38. a4 {[%clk 0:00:16.5]} 1-0

[Event "*** Qualifier 4: Titled Tuesday 3|2 Blitz"]
[Site "Chess.com"]
[Date "2017.04.25"]
[Round "9"]
[White "Blitzstream"]
[Black "SerGo055"]
[Result "1-0"]
[WhiteElo "2444"]
[BlackElo "2334"]
[TimeControl "180+2"]
[EndTime "14:56:50 PDT"]
[Termination "Blitzstream won by resignation"]

1. g3 {[%clk 0:03:02]} 1... d5 {[%clk 0:02:59.9]} 2. Bg2 {[%clk 0:03:03]} 2...
c6 {[%clk 0:03:01]} 3. b3 {[%clk 0:03:04.3]} 3... Nf6 {[%clk 0:03:01.9]} 4. Bb2
{[%clk 0:03:05.9]} 4... Bf5 {[%clk 0:03:03.5]} 5. d3 {[%clk 0:03:07.2]} 5... e6
{[%clk 0:03:04.7]} 6. Nd2 {[%clk 0:03:08.9]} 6... h6 {[%clk 0:03:03.9]} 7. e3
{[%clk 0:03:09.5]} 7... Be7 {[%clk 0:03:04.2]} 8. Ne2 {[%clk 0:03:11.1]} 8...
O-O {[%clk 0:03:05.1]} 9. h3 {[%clk 0:03:11.8]} 9... Bh7 {[%clk 0:03:02.5]} 10.
a3 {[%clk 0:03:12.8]} 10... Nbd7 {[%clk 0:02:57.1]} 11. O-O {[%clk 0:03:13.7]}
11... e5 {[%clk 0:02:53.2]} 12. e4 {[%clk 0:03:07]} 12... Re8 {[%clk 0:02:49.3]}
13. f4 {[%clk 0:03:01.2]} 13... dxe4 {[%clk 0:02:31.3]} 14. fxe5 {[%clk
0:02:56.2]} 14... exd3 {[%clk 0:02:18.3]} 15. cxd3 {[%clk 0:02:36.1]} 15... Nd5
{[%clk 0:01:49.7]} 16. Bxd5 {[%clk 0:02:04.4]} 16... cxd5 {[%clk 0:01:49.4]} 17.
d4 {[%clk 0:02:06]} 17... Rc8 {[%clk 0:01:38.7]} 18. Rc1 {[%clk 0:01:45.9]}
18... Qb6 {[%clk 0:01:26.2]} 19. Nf4 {[%clk 0:01:37.2]} 19... Qb5 {[%clk
0:01:05.6]} 20. Qf3 {[%clk 0:01:32.6]} 20... Bg5 {[%clk 0:00:41.9]} 21. Nxd5
{[%clk 0:01:13.8]} 21... Bg6 {[%clk 0:00:21]} 22. Rxc8 {[%clk 0:01:04.3]} 22...
Rxc8 {[%clk 0:00:21.5]} 23. h4 {[%clk 0:00:55.1]} 23... Bxd2 {[%clk 0:00:11.3]}
24. Ne7+ {[%clk 0:00:56.2]} 24... Kh7 {[%clk 0:00:12.3]} 25. Nxc8 {[%clk
0:00:57.6]} 25... h5 {[%clk 0:00:07.6]} 26. Nd6 {[%clk 0:00:55.2]} 26... Qa6
{[%clk 0:00:06.3]} 27. Bc1 {[%clk 0:00:33.3]} 27... Bxc1 {[%clk 0:00:04.3]} 28.
Rxc1 {[%clk 0:00:35.2]} 28... Qxa3 {[%clk 0:00:05.3]} 29. Rf1 {[%clk 0:00:34.3]}
29... Qb2 {[%clk 0:00:06.6]} 30. Qf2 {[%clk 0:00:25.8]} 30... Qxb3 {[%clk
0:00:07.3]} 31. Kh2 {[%clk 0:00:23.9]} 31... Nf8 {[%clk 0:00:08]} 32. Nxf7
{[%clk 0:00:22.3]} 32... Ne6 {[%clk 0:00:09.2]} 33. Ng5+ {[%clk 0:00:18.8]}
33... Nxg5 {[%clk 0:00:09.7]} 34. hxg5 {[%clk 0:00:20.7]} 34... a5 {[%clk
0:00:08.7]} 35. Re1 {[%clk 0:00:21.6]} 35... Qe6 {[%clk 0:00:08.7]} 36. Qf3
{[%clk 0:00:20.9]} 36... b5 {[%clk 0:00:05.1]} 37. d5 {[%clk 0:00:21.8]} 37...
Qb6 {[%clk 0:00:04.1]} 38. e6 {[%clk 0:00:22.5]} 38... b4 {[%clk 0:00:05.4]} 39.
e7 {[%clk 0:00:23.9]} 39... b3 {[%clk 0:00:05.4]} 40. e8=Q {[%clk 0:00:24.2]}
40... Bxe8 {[%clk 0:00:05.8]} 41. Rxe8 {[%clk 0:00:26.1]} 41... b2 {[%clk
0:00:06.1]} 42. Qf5+ {[%clk 0:00:27]} 42... Qg6 {[%clk 0:00:07]} 43. Qxg6+
{[%clk 0:00:28.2]} 43... Kxg6 {[%clk 0:00:07.9]} 44. Rb8 {[%clk 0:00:30.1]} 1-0

[Event "*** Qualifier 4: Titled Tuesday 3|2 Blitz"]
[Site "Chess.com"]
[Date "2017.04.25"]
[Round "9"]
[White "biostatistician"]
[Black "Rock700chess"]
[Result "1-0"]
[WhiteElo "2451"]
[BlackElo "2276"]
[TimeControl "180+2"]
[EndTime "14:57:14 PDT"]
[Termination "biostatistician won by resignation"]

1. d4 {[%clk 0:03:02]} 1... Nf6 {[%clk 0:02:59.5]} 2. Nf3 {[%clk 0:03:03.9]}
2... g6 {[%clk 0:02:56.1]} 3. c4 {[%clk 0:03:05.3]} 3... Bg7 {[%clk 0:02:57]} 4.
Nc3 {[%clk 0:03:07.2]} 4... O-O {[%clk 0:02:58.6]} 5. e4 {[%clk 0:03:07.3]} 5...
d6 {[%clk 0:03:00.3]} 6. Be2 {[%clk 0:03:08.9]} 6... Nbd7 {[%clk 0:03:01.9]} 7.
O-O {[%clk 0:03:07.7]} 7... e5 {[%clk 0:03:03.8]} 8. Be3 {[%clk 0:03:08.9]} 8...
c6 {[%clk 0:02:50.1]} 9. d5 {[%clk 0:03:08.5]} 9... c5 {[%clk 0:02:49.7]} 10.
Ne1 {[%clk 0:03:09.1]} 10... a6 {[%clk 0:02:46.7]} 11. Kh1 {[%clk 0:03:07.9]}
11... Ne8 {[%clk 0:02:46.1]} 12. g4 {[%clk 0:03:08]} 12... f5 {[%clk 0:02:39.2]}
13. gxf5 {[%clk 0:03:09.9]} 13... gxf5 {[%clk 0:02:41]} 14. exf5 {[%clk
0:03:09.6]} 14... Rxf5 {[%clk 0:02:42.9]} 15. Bg4 {[%clk 0:03:09.1]} 15... Rf8
{[%clk 0:02:36.8]} 16. Rg1 {[%clk 0:03:09.6]} 16... Kh8 {[%clk 0:02:35.5]} 17.
Nf3 {[%clk 0:03:00.3]} 17... Nef6 {[%clk 0:02:20]} 18. Be6 {[%clk 0:02:22.2]}
18... Qe7 {[%clk 0:02:15.9]} 19. Ng5 {[%clk 0:02:21.9]} 19... Nb6 {[%clk
0:02:10.6]} 20. b3 {[%clk 0:02:20.4]} 20... Bxe6 {[%clk 0:02:05.1]} 21. Nxe6
{[%clk 0:02:22.3]} 21... Rg8 {[%clk 0:02:06.3]} 22. Bg5 {[%clk 0:02:19.1]} 22...
h6 {[%clk 0:02:05.4]} 23. Bh4 {[%clk 0:02:06.1]} 23... Qf7 {[%clk 0:02:06.3]}
24. Qf3 {[%clk 0:01:47.7]} 24... Nbd7 {[%clk 0:01:55.9]} 25. Ne4 {[%clk
0:01:40]} 25... Kh7 {[%clk 0:01:19.8]} 26. Nxg7 {[%clk 0:01:34.3]} 26... Rxg7
{[%clk 0:01:17.3]} 27. Rxg7+ {[%clk 0:01:36.2]} 27... Qxg7 {[%clk 0:01:11]} 28.
Nxf6+ {[%clk 0:01:33]} 28... Nxf6 {[%clk 0:01:08.8]} 29. Bxf6 {[%clk 0:01:34]}
29... Rf8 {[%clk 0:01:05]} 30. Qf5+ {[%clk 0:01:24.3]} 30... Qg6 {[%clk
0:01:06.2]} 31. Qxg6+ {[%clk 0:01:21.3]} 31... Kxg6 {[%clk 0:01:08.1]} 32. Be7
{[%clk 0:01:22.2]} 32... Rxf2 {[%clk 0:01:08.6]} 33. Bxd6 {[%clk 0:01:23.1]}
33... e4 {[%clk 0:01:09.5]} 34. Bxc5 {[%clk 0:01:24.1]} 34... Rf3 {[%clk
0:01:09.3]} 35. Re1 {[%clk 0:01:22.5]} 35... Kf5 {[%clk 0:01:10.3]} 36. Kg2
{[%clk 0:01:22.7]} 36... h5 {[%clk 0:01:09]} 37. d6 {[%clk 0:01:17.4]} 37... Rd3
{[%clk 0:01:08]} 38. Re2 {[%clk 0:01:11.8]} 38... h4 {[%clk 0:01:08.4]} 39. h3
{[%clk 0:01:10.2]} 39... Kf4 {[%clk 0:01:06.9]} 40. Bb4 {[%clk 0:00:49.2]} 40...
b5 {[%clk 0:01:07]} 41. c5 {[%clk 0:00:47.4]} 41... Rg3+ {[%clk 0:01:04.3]} 42.
Kh2 {[%clk 0:00:47.7]} 42... e3 {[%clk 0:01:02.5]} 43. d7 {[%clk 0:00:46.9]}
43... Rg8 {[%clk 0:01:02.2]} 44. c6 {[%clk 0:00:47.8]} 44... Kf3 {[%clk
0:01:01.5]} 45. Re1 {[%clk 0:00:45.9]} 45... Kf2 {[%clk 0:00:48.6]} 46. c7
{[%clk 0:00:41.5]} 46... Rg2+ {[%clk 0:00:46.2]} 47. Kh1 {[%clk 0:00:42]} 47...
Rg3 {[%clk 0:00:47.4]} 48. Bd6 {[%clk 0:00:24.7]} 48... Rxh3+ {[%clk 0:00:41.2]}
49. Bh2 {[%clk 0:00:24.5]} 49... Kxe1 {[%clk 0:00:20]} 50. d8=Q {[%clk
0:00:25.3]} 50... e2 {[%clk 0:00:16.3]} 51. c8=Q {[%clk 0:00:26.2]} 51... Rxh2+
{[%clk 0:00:12.1]} 52. Kxh2 {[%clk 0:00:26.2]} 52... Kf2 {[%clk 0:00:13.6]} 53.
Qf6+ {[%clk 0:00:25.6]} 1-0

[Event "*** Qualifier 4: Titled Tuesday 3|2 Blitz"]
[Site "Chess.com"]
[Date "2017.04.25"]
[Round "9"]
[White "ChessQueen"]
[Black "tigra"]
[Result "1/2-1/2"]
[WhiteElo "2514"]
[BlackElo "2598"]
[TimeControl "180+2"]
[EndTime "14:57:21 PDT"]
[Termination "Game drawn by repetition"]

1. e4 {[%clk 0:03:02]} 1... e6 {[%clk 0:03:00.5]} 2. d4 {[%clk 0:03:02.5]} 2...
d5 {[%clk 0:03:02.4]} 3. Nc3 {[%clk 0:03:03.8]} 3... Nf6 {[%clk 0:03:01.3]} 4.
Bg5 {[%clk 0:03:02]} 4... dxe4 {[%clk 0:03:01.2]} 5. Nxe4 {[%clk 0:03:02]} 5...
Be7 {[%clk 0:03:02.8]} 6. Bxf6 {[%clk 0:03:03.2]} 6... gxf6 {[%clk 0:03:04.7]}
7. Ng3 {[%clk 0:02:51.1]} 7... c5 {[%clk 0:03:03.1]} 8. dxc5 {[%clk 0:02:41.5]}
8... Qa5+ {[%clk 0:02:58.8]} 9. c3 {[%clk 0:02:40.5]} 9... Qxc5 {[%clk
0:02:58.3]} 10. Bd3 {[%clk 0:02:38.9]} 10... Nc6 {[%clk 0:02:55.2]} 11. N1e2
{[%clk 0:02:36.8]} 11... Ne5 {[%clk 0:02:52.5]} 12. Bc2 {[%clk 0:02:32.6]} 12...
Bd7 {[%clk 0:02:46.9]} 13. Nd4 {[%clk 0:02:26.5]} 13... f5 {[%clk 0:02:40.3]}
14. O-O {[%clk 0:02:20.7]} 14... O-O-O {[%clk 0:02:40.7]} 15. Qe2 {[%clk
0:02:00.8]} 15... h5 {[%clk 0:02:26.8]} 16. f4 {[%clk 0:01:32.4]} 16... Nc6
{[%clk 0:02:25.4]} 17. Rfd1 {[%clk 0:01:24.7]} 17... h4 {[%clk 0:02:20.9]} 18.
Nf1 {[%clk 0:01:24.4]} 18... Qb6 {[%clk 0:02:12.6]} 19. Kh1 {[%clk 0:01:24.2]}
19... Nxd4 {[%clk 0:02:13.5]} 20. cxd4 {[%clk 0:01:24.1]} 20... Bc6 {[%clk
0:02:13.6]} 21. Bxf5 {[%clk 0:01:07.7]} 21... Rxd4 {[%clk 0:02:13.6]} 22. Rxd4
{[%clk 0:01:05.2]} 22... Qxd4 {[%clk 0:02:13.9]} 23. Rd1 {[%clk 0:00:50.5]}
23... Qb4 {[%clk 0:00:35.6]} 24. Bxe6+ {[%clk 0:00:51.2]} 24... fxe6 {[%clk
0:00:15.9]} 25. Qxe6+ {[%clk 0:00:52.1]} 25... Kc7 {[%clk 0:00:17.8]} 26. Qe5+
{[%clk 0:00:53.2]} 26... Bd6 {[%clk 0:00:12.8]} 27. Qxh8 {[%clk 0:00:38.9]}
27... Bxg2+ {[%clk 0:00:13.3]} 28. Kxg2 {[%clk 0:00:36.7]} 28... Qe4+ {[%clk
0:00:14.4]} 29. Kh3 {[%clk 0:00:26.8]} 29... Qf5+ {[%clk 0:00:15.5]} 30. Kg2
{[%clk 0:00:18.5]} 30... Qe4+ {[%clk 0:00:15.8]} 31. Kh3 {[%clk 0:00:19.6]}
31... Qf5+ {[%clk 0:00:15.4]} 32. Kg2 {[%clk 0:00:14.9]} 32... Qe4+ {[%clk
0:00:16]} 33. Kh3 {[%clk 0:00:16.1]} 33... Qf5+ {[%clk 0:00:16.9]} 34. Kxh4
{[%clk 0:00:16.9]} 34... Qxf4+ {[%clk 0:00:17.8]} 35. Kh5 {[%clk 0:00:16.6]}
35... Qf5+ {[%clk 0:00:17.5]} 36. Kh4 {[%clk 0:00:16.1]} 36... Qf4+ {[%clk
0:00:18.3]} 37. Kh5 {[%clk 0:00:17.2]} 37... Qf3+ {[%clk 0:00:19.1]} 38. Kg6
{[%clk 0:00:17.5]} 38... Qg4+ {[%clk 0:00:19.3]} 39. Kf7 {[%clk 0:00:18.4]}
39... Qd7+ {[%clk 0:00:19.1]} 40. Kg6 {[%clk 0:00:19]} 40... Qg4+ {[%clk
0:00:19.8]} 41. Kf7 {[%clk 0:00:20.1]} 41... Qxd1 {[%clk 0:00:18.8]} 42. Qc3+
{[%clk 0:00:20.2]} 42... Kd7 {[%clk 0:00:19.1]} 43. Qh3+ {[%clk 0:00:20.9]}
43... Kc7 {[%clk 0:00:20]} 44. Ne3 {[%clk 0:00:22.1]} 44... Qd4 {[%clk
0:00:15.8]} 45. Qf3 {[%clk 0:00:22.1]} 45... Qxb2 {[%clk 0:00:15.4]} 46. Nd5+
{[%clk 0:00:23]} 46... Kc6 {[%clk 0:00:16.7]} 47. Ne7+ {[%clk 0:00:23.2]} 47...
Kc7 {[%clk 0:00:15.9]} 48. Nd5+ {[%clk 0:00:24.2]} 48... Kd7 {[%clk 0:00:16.7]}
49. Qg4+ {[%clk 0:00:23.3]} 49... Kc6 {[%clk 0:00:17.5]} 50. Qc4+ {[%clk
0:00:24.2]} 50... Bc5 {[%clk 0:00:18]} 51. Ne7+ {[%clk 0:00:25.3]} 51... Kb6
{[%clk 0:00:18.9]} 52. Nd5+ {[%clk 0:00:26.1]} 52... Kc6 {[%clk 0:00:19.7]} 53.
Ne7+ {[%clk 0:00:26.5]} 53... Kb6 {[%clk 0:00:20.2]} 54. Nd5+ {[%clk 0:00:27.7]}
54... Kc6 {[%clk 0:00:21.3]} 55. Ne7+ {[%clk 0:00:28.9]} 55... Kb6 {[%clk
0:00:22.6]} 56. Nd5+ {[%clk 0:00:27.7]} 56... Kc6 {[%clk 0:00:23.2]} 57. Ne7+
{[%clk 0:00:28.7]} 57... Kb6 {[%clk 0:00:24.2]} 1/2-1/2

[Event "*** Qualifier 4: Titled Tuesday 3|2 Blitz"]
[Site "Chess.com"]
[Date "2017.04.25"]
[Round "9"]
[White "Alex_Molchanov"]
[Black "ehrenfeld"]
[Result "0-1"]
[WhiteElo "2427"]
[BlackElo "2397"]
[TimeControl "180+2"]
[EndTime "14:57:24 PDT"]
[Termination "ehrenfeld won by checkmate"]

1. d4 {[%clk 0:03:02]} 1... Nf6 {[%clk 0:03:00]} 2. c4 {[%clk 0:03:03]} 2... e6
{[%clk 0:03:01.1]} 3. Nf3 {[%clk 0:03:04.4]} 3... Bb4+ {[%clk 0:03:01.9]} 4.
Nbd2 {[%clk 0:03:04.9]} 4... d6 {[%clk 0:03:01.6]} 5. a3 {[%clk 0:03:01.4]} 5...
Bxd2+ {[%clk 0:03:02]} 6. Bxd2 {[%clk 0:03:03.3]} 6... Nbd7 {[%clk 0:03:02.6]}
7. Qc2 {[%clk 0:03:01.4]} 7... O-O {[%clk 0:03:00.4]} 8. e3 {[%clk 0:03:02.6]}
8... e5 {[%clk 0:02:59.4]} 9. Bc3 {[%clk 0:02:49]} 9... e4 {[%clk 0:02:58]} 10.
Nd2 {[%clk 0:02:48.5]} 10... Re8 {[%clk 0:02:58.9]} 11. Be2 {[%clk 0:02:48]}
11... d5 {[%clk 0:02:58.9]} 12. b3 {[%clk 0:02:45.7]} 12... Nf8 {[%clk 0:02:50]}
13. Qd1 {[%clk 0:02:40.7]} 13... Ng6 {[%clk 0:02:45.2]} 14. O-O {[%clk
0:02:39.9]} 14... Bf5 {[%clk 0:02:34.9]} 15. cxd5 {[%clk 0:02:29.9]} 15... Nxd5
{[%clk 0:02:34.6]} 16. Rc1 {[%clk 0:02:29.2]} 16... Qd7 {[%clk 0:02:33.7]} 17.
Bb2 {[%clk 0:02:26.1]} 17... Rad8 {[%clk 0:02:33]} 18. Nc4 {[%clk 0:02:26.7]}
18... Qe7 {[%clk 0:02:22.8]} 19. Qe1 {[%clk 0:02:05.9]} 19... Qg5 {[%clk
0:02:17.6]} 20. Kh1 {[%clk 0:02:06.9]} 20... Nh4 {[%clk 0:02:09.1]} 21. Rg1
{[%clk 0:02:07.9]} 21... Re6 {[%clk 0:01:32.4]} 22. f4 {[%clk 0:02:06.1]} 22...
exf3 {[%clk 0:01:22.4]} 23. gxf3 {[%clk 0:02:07.1]} 23... Qe7 {[%clk 0:01:23.3]}
24. Qg3 {[%clk 0:01:41.9]} 24... Bg6 {[%clk 0:01:14.4]} 25. e4 {[%clk
0:01:36.9]} 25... Rxe4 {[%clk 0:01:08.3]} 26. fxe4 {[%clk 0:01:34.7]} 26...
Bxe4+ {[%clk 0:01:08.6]} 27. Rg2 {[%clk 0:01:35.5]} 27... Bxg2+ {[%clk 0:01:09]}
28. Kg1 {[%clk 0:01:36.7]} 28... Be4 {[%clk 0:01:03.7]} 29. Ne5 {[%clk 0:01:31]}
29... Ng6 {[%clk 0:00:55.4]} 30. Rf1 {[%clk 0:01:28.4]} 30... f6 {[%clk
0:00:47.7]} 31. Ng4 {[%clk 0:01:17.3]} 31... Re8 {[%clk 0:00:47.8]} 32. Bc4
{[%clk 0:01:17.7]} 32... c6 {[%clk 0:00:48.9]} 33. h4 {[%clk 0:01:15]} 33... f5
{[%clk 0:00:43.6]} 34. h5 {[%clk 0:01:06.6]} 34... fxg4 {[%clk 0:00:37.4]} 35.
hxg6 {[%clk 0:01:07.7]} 35... Bxg6 {[%clk 0:00:36.8]} 36. Bc1 {[%clk 0:01:02.8]}
36... Qe4 {[%clk 0:00:33.5]} 37. Bf4 {[%clk 0:00:54.6]} 37... Qxd4+ {[%clk
0:00:32.9]} 38. Kh2 {[%clk 0:00:55.3]} 38... h5 {[%clk 0:00:28.2]} 39. Rf2
{[%clk 0:00:44.4]} 39... Kh7 {[%clk 0:00:28.4]} 40. Bg5 {[%clk 0:00:40.6]} 40...
Ne3 {[%clk 0:00:24.6]} 41. Bf7 {[%clk 0:00:33.4]} 41... Bxf7 {[%clk 0:00:24.4]}
42. Rxf7 {[%clk 0:00:34.8]} 42... Qd3 {[%clk 0:00:21.2]} 43. Rf2 {[%clk
0:00:31]} 43... Qe4 {[%clk 0:00:18.1]} 44. Qh4 {[%clk 0:00:24.1]} 44... Kg6
{[%clk 0:00:16.6]} 45. Bf4 {[%clk 0:00:20.6]} 45... Qd5 {[%clk 0:00:12.8]} 46.
Qg3 {[%clk 0:00:19.4]} 46... Nf5 {[%clk 0:00:13.2]} 47. Qc3 {[%clk 0:00:20.1]}
47... Re4 {[%clk 0:00:12.5]} 48. Qc2 {[%clk 0:00:20.4]} 48... Re1 {[%clk
0:00:12.5]} 49. Rg2 {[%clk 0:00:20.3]} 49... Qe4 {[%clk 0:00:11.6]} 50. Qf2
{[%clk 0:00:18.7]} 50... Kh7 {[%clk 0:00:09.4]} 51. Bd2 {[%clk 0:00:17.9]} 51...
g3+ {[%clk 0:00:10]} 52. Rxg3 {[%clk 0:00:18.4]} 52... Rh1# {[%clk 0:00:09.9]}
0-1